fUST/lending_fUST_20251001
["ID","MTS","AMOUNT","RATE_DAILY","PERIOD"]
[388669155,1759312267035,-1988.74,0.00021095,2]
[388669156,1759312267044,-1494.18,0.00021095,2]
[388669157,1759312267053,-500.0,0.00021095,2]
[388669158,1759312267062,-740.91,0.00021095,2]
[388669159,1759312267071,-2157.86,0.00021095,2]
[388669160,1759312267081,-500.0,0.00021095,2]
[388669161,1759312267090,-740.79,0.00021095,2]
[388669162,1759312267099,-1666.12,0.00021095,2]
[388669163,1759312267109,-1456.34,0.00021095,2]
[388669164,1759312267118,-500.0,0.00021095,2]
[388669165,1759312267128,-500.0,0.00021095,2]
[388669166,1759312267137,-1732.52,0.00021095,2]
[388669167,1759312267147,-1269.88,0.00021095,2]
[388669168,1759312267262,-2150.38,0.00021095,2]
[388669169,1759312267272,-5567.8,0.00021095,2]
[388669170,1759312267281,-500.0,0.00021095,2]
[388669171,1759312267290,-500.0,0.00021095,2]
[388669172,1759312267299,-3321.43,0.00021095,2]
[388669173,1759312267308,-500.0,0.00021095,2]
[388669174,1759312267317,-500.0,0.00021095,2]
[388669175,1759312267327,-2282.82,0.00021095,2]
[388669176,1759312267336,-760.17,0.00021095,2]
[388669177,1759312267346,-1952.05,0.00021095,2]
[388669178,1759312267355,-696.85,0.00021095,2]
[388669179,1759312267364,-500.0,0.00021095,2]
[388669180,1759312267374,-400.06368297,0.00021095,2]
[388669181,1759312267383,-802.72,0.00021095,2]
[388669182,1759312267394,-500.0,0.00021095,2]
[388669183,1759312267404,-2899.74,0.00021095,2]
[388669184,1759312267413,-2537.09,0.00021095,2]
[388669185,1759312267423,-197.03019755,0.00021095,2]
[388669186,1759312271158,4501.21463597,0.0001905,2]
[388669187,1759312271180,10000.01,0.0001905,2]
[388669188,1759312271202,10000.01,0.0001905,2]
[388669189,1759312271222,10000.01,0.0001905,2]
[388669190,1759312271243,10000.01,0.0001905,2]
[388669191,1759312271265,10000.01,0.0001905,2]
[388669192,1759312271287,10000.01,0.0001905,2]
[388669193,1759312271311,10000.01,0.0001905,2]
[388669194,1759312271333,10000.01,0.0001905,2]
[388669195,1759312271355,10000.01,0.0001905,2]
[388669196,1759312271387,275498.69536403,0.0001905,2]
[388669197,1759312282093,300.0,0.000191,2]
[388669198,1759312284112,5000.0,0.00019081,2]
[388669199,1759312299909,4700.01,0.00019113,2]
[388669200,1759312299931,299.99,0.00019113,2]
[388669201,1759312307890,5000.0,0.00019113,2]
[388669202,1759312324201,4700.02,0.00019113,2]
[388669203,1759312324225,299.98,0.00019113,2]
[388669204,1759312338802,796.20283639,0.00019074,2]
[388669205,1759312346785,5000.0,0.00019113,2]
[388669206,1759312347836,259.8903133,0.00018173,2]
[388669207,1759312369722,3643.93685031,0.00019113,2]
[388669208,1759312369752,1356.06314969,0.00019113,2]
[388669209,1759312393139,5000.0,0.00019113,2]
[388669210,1759312415586,3643.94685031,0.00019113,2]
[388669211,1759312415609,1356.05314969,0.00019113,2]
[388669212,1759312427655,8643.95685031,0.00019076,2]
[388669213,1759312427676,10000.01,0.00019076,2]
[388669214,1759312427697,10000.01,0.00019076,2]
[388669215,1759312427722,10000.01,0.00019076,2]
[388669216,1759312427748,10000.01,0.00019076,2]
[388669217,1759312427771,10000.01,0.00019076,2]
[388669218,1759312427794,10000.01,0.00019076,2]
[388669219,1759312427818,10000.01,0.00019076,2]
[388669220,1759312427840,10000.01,0.00019076,2]
[388669221,1759312427868,281355.96314969,0.00019076,2]
[388669223,1759312520149,1607.03607722,0.00019078,2]
[388669224,1759312567147,500.940293,0.00018176,2]
[388669225,1759312591986,105236.46206963,0.00019078,2]
[388669226,1759312593090,-249.88971549,0.00019078,2]
[388669227,1759312607127,-300.0,0.00019078,2]
[388669228,1759312609028,210.2436303,0.00018249,2]
[388669243,1759312621096,-250.0,0.00019078,2]
[388669244,1759312638050,-276.36097538,0.00019068,3]
[388669245,1759312639426,-731.50015451,0.00019068,3]
[388669246,1759312652719,-166.063822,0.00019068,3]
[388669247,1759312666428,-645.25045073,0.00019068,3]
[388669248,1759312677760,622.8258184,0.00018169,2]
[388669251,1759312741545,-396.67685845,0.00019068,3]
[388669252,1759312742301,300.0,0.00019067,2]
[388669253,1759312744030,-281.99033271,0.00019068,3]
[388669254,1759312745516,-130.91853611,0.00019068,3]
[388669255,1759312745538,-94.05690597,0.00019068,3]
[388669256,1759312750630,-315.68738622,0.00019068,3]
[388669257,1759312753204,-188.39728367,0.00019068,3]
[388669258,1759312757558,-212.30842414,0.00019068,3]
[388669259,1759312757580,-14.86009915,0.00019068,3]
[388669260,1759312759186,-265.92257133,0.00019068,3]
[388669264,1759312765189,-124.44732952,0.00019068,3]
[388669265,1759312765209,-69.32887742,0.00019068,3]
[388669266,1759312768248,-133.28112258,0.00019068,3]
[388669267,1759312768270,-133.46596214,0.00019068,3]
[388669268,1759312770517,-186.50113206,0.00019068,3]
[388669269,1759312772163,-287.8929058,0.00019068,3]
[388669270,1759312772184,-122.92052751,0.00019077,2]
[388669271,1759312774267,-185.14218044,0.00019077,2]
[388669272,1759312775807,-177.3254538,0.00019077,2]
[388669273,1759312777855,-360.37186939,0.00019077,2]
[388669274,1759312780677,-354.23996886,0.00019077,2]
[388669275,1759312780699,-14.73260355,0.00019077,2]
[388669276,1759312783861,-303.33571407,0.00019077,2]
[388669277,1759312785420,-181.93168238,0.00019077,2]
[388669278,1759312785441,-150.63079657,0.00019077,2]
[388669279,1759312786883,-349.36920343,0.00019077,2]
[388669280,1759312786905,-243.55137263,0.00019078,2]
[388669281,1759312789487,-300.0,0.00019078,2]
[388669282,1759312791072,-300.0,0.00019078,2]
[388669283,1759312793688,-408.13593994,0.00019078,2]
[388669284,1759312795873,-200.07144948,0.00019078,2]
[388669285,1759312797984,-498.55838868,0.00019078,2]
[388669287,1759312800381,1406.15656762,0.00019051,2]
[388669288,1759312801052,-154.17596329,0.00019078,2]
[388669289,1759312801604,300.0,0.00019077,2]
[388669290,1759312801980,300.0,0.00019077,2]
[388669291,1759312802065,300.0,0.00019077,2]
[388669292,1759312802356,300.0,0.00019077,2]
[388669293,1759312802773,300.0,0.00019077,2]
[388669294,1759312802913,-571.16639532,0.00019078,2]
[388669295,1759312806398,1200.0,0.00019077,2]
[388669296,1759312806843,-157.19980469,0.00019078,2]
[388669297,1759312809912,344.89037256,0.00019051,2]
[388669298,1759312810598,500.0,0.00019077,2]
[388669299,1759312810662,386.74609022,0.00019077,2]
[388669300,1759312812726,-212.67271446,0.00019078,2]
[388669301,1759312814341,281.82328188,0.00019077,2]
[388669302,1759312814902,-206.46884336,0.00019078,2]
[388669303,1759312815545,155.0,0.00019077,2]
[388669304,1759312818303,-232.61845327,0.00019078,2]
[388669305,1759312823288,-590.509024,0.00019078,2]
[388669306,1759312824858,-302.85233423,0.00019078,2]
[388669307,1759312827493,-212.29116791,0.00019078,2]
[388669308,1759312829076,-363.43334336,0.00019078,2]
[388669309,1759312832038,-205.47998789,0.00019078,2]
[388669310,1759312834247,-227.46344808,0.00019078,2]
[388669311,1759312836519,-419.1037329,0.00019078,2]
[388669312,1759312839299,-229.72664162,0.00019078,2]
[388669313,1759312842469,-203.65425316,0.00019078,2]
[388669314,1759312845243,-525.07427452,0.00019078,2]
[388669315,1759312846740,-200.0,0.00019078,2]
[388669316,1759312849310,-152.0,0.00019078,2]
[388669317,1759312851290,-185.14218044,0.00019078,2]
[388669318,1759312851756,500.0,0.00019077,2]
[388669319,1759312854047,-428.61668822,0.00019078,2]
[388669320,1759312856800,-230.32027283,0.00019078,2]
[388669321,1759312859161,-160.54493585,0.00019078,2]
[388669322,1759312862690,300.0,0.00019077,2]
[388669323,1759312863293,-274.60612634,0.00019078,2]
[388669324,1759312866020,-276.13221432,0.00019078,2]
[388669325,1759312867582,-224.88304557,0.00019078,2]
[388669326,1759312869222,-500.0,0.00019078,2]
[388669327,1759312870951,-404.24577342,0.00019078,2]
[388669328,1759312873050,-152.70300438,0.00019078,2]
[388669329,1759312874619,-281.96898877,0.00019078,2]
[388669330,1759312877799,-173.828921,0.00019078,2]
[388669331,1759312879753,-490.76308097,0.00019078,2]
[388669332,1759312881969,-199.53354559,0.00019078,2]
[388669333,1759312883486,-352.8146485,0.00019078,2]
[388669334,1759312885478,-293.87486244,0.00019078,2]
[388669335,1759312887553,-154.43112863,0.00019078,2]
[388669336,1759312887905,1000.0,0.00019078,2]
[388669337,1759312888082,151.0,0.000189,2]
[388669338,1759312888373,151.0,0.00018,2]
[388669339,1759312888720,151.0,0.000171,2]
[388669340,1759312889035,1000.0,0.00019078,2]
[388669341,1759312889079,151.0,0.000163,2]
[388669342,1759312889416,151.0,0.000154,2]
[388669343,1759312889449,-336.33244863,0.00019078,2]
[388669344,1759312889821,151.0,0.000145,2]
[388669345,1759312890132,151.0,0.000136,2]
[388669346,1759312890193,1000.0,0.00019078,2]
[388669347,1759312890464,151.0,0.000128,2]
[388669348,1759312890804,151.0,0.000119,2]
[388669349,1759312891357,472.55025534,0.00019078,2]
[388669350,1759312891377,527.44974466,0.00019078,2]
[388669351,1759312892163,-333.02370465,0.00019078,2]
[388669352,1759312892650,1000.0,0.00019078,2]
[388669353,1759312893683,706.22129428,0.00019078,2]
[388669354,1759312895375,-385.64536508,0.00019078,2]
[388669355,1759312901655,-1219.16523446,0.00019073,2]
[388669356,1759312901761,-2438.33046892,0.00019073,2]
[388669357,1759312901948,-4876.66093784,0.00019073,2]
[388669358,1759312902060,-246.68812432,0.00019073,2]
[388669360,1759312921831,-8498.51286236,0.00019078,2]
[388669361,1759312922095,-10000.01,0.00019078,2]
[388669362,1759312922247,-10000.01,0.00019078,2]
[388669363,1759312922351,-10000.01,0.00019078,2]
[388669364,1759312922465,-10000.01,0.00019078,2]
[388669365,1759312922632,-10000.01,0.00019078,2]
[388669366,1759312922767,-10000.01,0.00019078,2]
[388669367,1759312922895,-10000.01,0.00019078,2]
[388669368,1759312923058,-10000.01,0.00019078,2]
[388669369,1759312931696,-182.60814923,0.00019077,2]
[388669370,1759312931726,-256.11631246,0.00019077,2]
[388669371,1759312931755,-500.0,0.00019077,2]
[388669372,1759312931783,-419.35386497,0.00019077,2]
[388669373,1759312931810,-501.43235754,0.00019077,2]
[388669374,1759312931954,-6280.9886316,0.00019078,2]
[388669377,1759312951832,-1200.0,0.00019077,2]
[388669379,1759312966009,-379.13865768,0.00019077,2]
[388669380,1759312967514,-120.86134232,0.00019077,2]
[388669381,1759312967534,-84.98423552,0.00019077,2]
[388669382,1759312969771,-86.61565944,0.00019077,2]
[388669383,1759312969793,-248.45187072,0.00019077,2]
[388669384,1759312972400,-208.65514315,0.00019077,2]
[388669385,1759312974451,-42.89298613,0.00019077,2]
[388669386,1759312974471,-146.05415145,0.00019077,2]
[388669387,1759312977720,-221.63937728,0.00019077,2]
[388669388,1759312977742,-75.91625665,0.00019077,2]
[388669389,1759312979211,-288.60595056,0.00019077,2]
[388669390,1759312981737,-135.47779279,0.00019077,2]
[388669391,1759312981760,-164.52220721,0.00019077,2]
[388669392,1759312983752,-286.23654563,0.00019077,2]
[388669393,1759312986037,-49.24124716,0.00019077,2]
[388669394,1759312986063,-103.60199293,0.00019077,2]
[388669395,1759312988117,-225.22986734,0.00019077,2]
[388669396,1759312990233,-171.16813973,0.00019077,2]
[388669397,1759312990254,-348.86333698,0.00019077,2]
[388669398,1759312992424,-151.13666302,0.00019077,2]
[388669399,1759312992445,-7.78347555,0.00019077,2]
[388669400,1759312993961,-260.09997174,0.00019077,2]
[388669402,1759312997904,-152.10875372,0.00019077,2]
[388669403,1759312997932,-139.90809202,0.00019077,2]
[388669408,1759313000030,-302.76807567,0.00019077,2]
[388669409,1759313001632,-57.32383231,0.00019077,2]
[388669410,1759313001658,-261.97980323,0.00019077,2]
[388669411,1759313003872,-276.9921209,0.00019077,2]
[388669412,1759313003896,-123.32650184,0.00019077,2]
[388669413,1759313006580,-326.171079,0.00019077,2]
[388669414,1759313009076,-50.50241916,0.00019077,2]
[388669415,1759313009100,-131.01388713,0.00019077,2]
[388669416,1759313012093,-227.46344808,0.00019077,2]
[388669417,1759313014317,-141.52266479,0.00019077,2]
[388669418,1759313014339,-306.42553555,0.00019077,2]
[388669419,1759313014363,-31.68402129,0.00019077,2]
[388669420,1759313018101,-246.02726314,0.00019077,2]
[388669421,1759313020337,-222.28871557,0.00019077,2]
[388669422,1759313020363,-109.80416715,0.00019077,2]
[388669423,1759313022915,-390.19583285,0.00019077,2]
[388669424,1759313022938,-56.49585281,0.00019077,2]
[388669425,1759313027054,-265.66589009,0.00019077,2]
[388669426,1759313028628,-177.8382571,0.00019077,2]
[388669427,1759313028651,-23.29541036,0.00019077,2]
[388669428,1759313030164,-289.27485921,0.00019077,2]
[388669429,1759313033565,-187.42973043,0.00019077,2]
[388669430,1759313033586,-174.95342101,0.00019077,2]
[388669431,1759313035611,-183.255087,0.00019077,2]
[388669432,1759313042424,300.0,0.00019076,2]
[388669433,1759313086299,1230.38699665,0.00019,2]
[388669434,1759313094243,6069.62300335,0.00019077,2]
[388669435,1759313094266,10000.01,0.00019077,2]
[388669436,1759313094287,10000.01,0.00019077,2]
[388669437,1759313094308,10000.01,0.00019077,2]
[388669438,1759313094330,10000.01,0.00019077,2]
[388669439,1759313094350,3930.33699665,0.00019077,2]
[388669440,1759313101197,286.0,0.00019076,2]
[388669441,1759313102032,300.0,0.00019076,2]
[388669442,1759313102058,300.0,0.00019076,2]
[388669443,1759313103368,300.0,0.00019076,2]
[388669444,1759313108595,1200.0,0.00019076,2]
[388669464,1759313162220,300.0,0.00019076,2]
[388669465,1759313172382,170.309954,0.00018146,2]
[388669466,1759313222720,300.0,0.00019076,2]
[388669467,1759313240533,1200.0,0.00019076,2]
[388669468,1759313265858,465.131,0.00027,120]
[388669469,1759313278414,465.131,0.00027,120]
[388669470,1759313281401,279.77,0.00016384,2]
[388669471,1759313282908,332.61340828,0.00019077,2]
[388669472,1759313283018,300.0,0.00019076,2]
[388669477,1759313342673,300.0,0.00019076,2]
[388669478,1759313383853,168.0,0.00018651,2]
[388669479,1759313399141,1076.58862206,0.00019,2]
[388669480,1759313402056,300.0,0.00019076,2]
[388669481,1759313402385,300.0,0.00019076,2]
[388669482,1759313402798,300.0,0.00019076,2]
[388669483,1759313406623,1200.0,0.00019076,2]
[388669517,1759313432796,-141.79149199,0.00019077,2]
[388669519,1759313432806,-500.0,0.00019077,2]
[388669521,1759313432815,-500.0,0.00019077,2]
[388669523,1759313432824,-500.0,0.00019077,2]
[388669525,1759313432833,-548.09452327,0.00019077,2]
[388669527,1759313432842,-500.0,0.00019077,2]
[388669529,1759313432851,-500.0,0.00019077,2]
[388669531,1759313432861,-500.0,0.00019077,2]
[388669533,1759313432870,-500.0,0.00019077,2]
[388669535,1759313432879,-500.0,0.00019077,2]
[388669537,1759313432889,-297.46045886,0.00019077,2]
[388669539,1759313432899,-500.0,0.00019077,2]
[388669541,1759313432908,-500.0,0.00019077,2]
[388669543,1759313432917,-259.69214449,0.00019077,2]
[388669544,1759313432927,-6234.75626526,0.00019078,2]
[388669550,1759313432942,-2030.151134,0.00019078,2]
[388669554,1759313432951,-693.0725975,0.00019078,2]
[388669558,1759313432961,-151.0,0.00019078,2]
[388669562,1759313432970,-151.0,0.00019078,2]
[388669565,1759313432979,-151.0,0.00019078,2]
[388669568,1759313432988,-178.07335893,0.00019078,2]
[388669571,1759313432997,-10208.31974532,0.00019078,2]
[388669666,1759313438599,-109623.68583376,0.00019078,2]
[388669669,1759313438609,-300.0,0.000191,2]
[388669671,1759313438619,-300.0,0.000191,2]
[388669672,1759313438628,-300.0,0.000191,2]
[388669675,1759313438638,-300.0,0.000191,2]
[388669676,1759313438647,-164.62777234,0.000191,2]
[388669679,1759313438656,-175.43,0.00019142,3]
[388669681,1759313438666,-526.29,0.00019142,3]
[388669683,1759313438676,-712.68,0.00019142,3]
[388669685,1759313438686,-701.7,0.00019146,3]
[388669687,1759313438695,-350.85,0.00019146,3]
[388669688,1759313438705,-2000.0,0.00019149,7]
[388669689,1759313438714,-890.58874089,0.00019149,7]
[388669691,1759313438724,-10000.0,0.00019152,2]
[388669693,1759313438734,-1403.41,0.00019156,3]
[388669694,1759313438743,-209.01831281,0.00019166,2]
[388669695,1759313438752,-500.0,0.00019166,2]
[388669697,1759313438762,-250.0,0.00019166,2]
[388669698,1759313438771,-200.0,0.00019166,2]
[388669699,1759313438781,-500.0,0.00019166,2]
[388669701,1759313438791,-258.61360556,0.00019166,2]
[388669702,1759313438800,-200.0,0.00019166,2]
[388669704,1759313438810,-500.0,0.00019166,2]
[388669706,1759313438819,-200.0,0.00019166,2]
[388669708,1759313438829,-500.0,0.00019166,2]
[388669709,1759313438838,-200.0,0.00019166,2]
[388669710,1759313438847,-500.0,0.00019166,2]
[388669711,1759313438856,-500.0,0.00019166,2]
[388669712,1759313438865,-151.0,0.00019166,2]
[388669713,1759313438876,-200.0,0.00019166,2]
[388669714,1759313438886,-151.0,0.00019166,2]
[388669715,1759313438895,-500.0,0.00019166,2]
[388669716,1759313438906,-151.0,0.00019166,2]
[388669717,1759313438915,-200.0,0.00019166,2]
[388669718,1759313438925,-151.0,0.00019166,2]
[388669719,1759313438934,-500.0,0.00019166,2]
[388669720,1759313438943,-261.81890834,0.00019166,2]
[388669721,1759313438953,-151.0,0.00019166,2]
[388669722,1759313438963,-500.0,0.00019166,2]
[388669723,1759313438972,-151.0,0.00019166,2]
[388669724,1759313438983,-500.0,0.00019166,2]
[388669725,1759313438992,-151.0,0.00019166,2]
[388669726,1759313439002,-500.0,0.00019166,2]
[388669727,1759313439011,-151.0,0.00019166,2]
[388669728,1759313439021,-500.0,0.00019166,2]
[388669729,1759313439030,-151.0,0.00019166,2]
[388669730,1759313439039,-500.0,0.00019166,2]
[388669731,1759313439049,-500.0,0.00019166,2]
[388669732,1759313439059,-151.0,0.00019166,2]
[388669733,1759313439068,-151.0,0.00019166,2]
[388669734,1759313439078,-151.0,0.00019166,2]
[388669735,1759313439088,-151.0,0.00019166,2]
[388669736,1759313439097,-151.0,0.00019166,2]
[388669737,1759313439107,-151.0,0.00019166,2]
[388669738,1759313439116,-500.0,0.00019166,2]
[388669739,1759313439126,-500.0,0.00019166,2]
[388669740,1759313439135,-500.0,0.00019166,2]
[388669741,1759313439145,-500.0,0.00019166,2]
[388669742,1759313439154,-500.0,0.00019166,2]
[388669743,1759313439164,-500.0,0.00019166,2]
[388669744,1759313439173,-500.0,0.00019166,2]
[388669745,1759313439184,-500.0,0.00019173,2]
[388669746,1759313439193,-500.0,0.00019173,2]
[388669747,1759313439203,-500.0,0.00019173,2]
[388669748,1759313439213,-500.0,0.00019173,2]
[388669749,1759313439222,-500.0,0.00019173,2]
[388669750,1759313439232,-500.0,0.00019173,2]
[388669751,1759313439241,-500.58319121,0.00019173,2]
[388669752,1759313439250,-500.0,0.00019173,2]
[388669753,1759313439259,-200.00901642,0.00019173,2]
[388669754,1759313439269,-500.0,0.00019173,2]
[388669755,1759313439279,-500.0,0.00019173,2]
[388669756,1759313439288,-501.42193119,0.00019173,2]
[388669757,1759313439298,-406.65900098,0.00019173,2]
[388669758,1759313439308,-503.31128271,0.00019173,2]
[388669759,1759313439321,-500.0,0.00019173,2]
[388669760,1759313439331,-503.13573806,0.00019173,2]
[388669761,1759313439340,-500.0,0.00019173,2]
[388669762,1759313439349,-500.0,0.00019173,2]
[388669763,1759313439360,-500.0,0.00019173,2]
[388669764,1759313439369,-500.0,0.00019173,2]
[388669765,1759313439378,-500.0,0.00019173,2]
[388669766,1759313439389,-500.0,0.00019173,2]
[388669767,1759313439399,-500.0,0.00019173,2]
[388669768,1759313439409,-500.0,0.00019173,2]
[388669769,1759313439419,-500.0,0.00019173,2]
[388669770,1759313439427,-559.98411796,0.00019173,2]
[388669771,1759313439436,-400.0,0.00019178,2]
[388669772,1759313439445,-480.0,0.00019178,2]
[388669773,1759313439454,-214.17830667,0.00019178,2]
[388669774,1759313439463,-501.26271719,0.00019178,2]
[388669775,1759313439472,-500.0,0.00019178,2]
[388669776,1759313439481,-500.0,0.00019178,2]
[388669777,1759313439490,-500.0,0.00019178,2]
[388669778,1759313439500,-482.05575443,0.00019178,2]
[388669779,1759313439510,-520.0,0.00019178,3]
[388669780,1759313439519,-500.0,0.00019178,2]
[388669781,1759313439529,-201.09131608,0.00019178,2]
[388669782,1759313439540,-500.0,0.00019178,2]
[388669783,1759313439549,-500.0,0.00019178,2]
[388669784,1759313439558,-482.22901942,0.00019178,2]
[388669785,1759313439567,-500.0,0.00019178,2]
[388669786,1759313439576,-500.0,0.00019178,2]
[388669787,1759313439586,-501.82339183,0.00019178,2]
[388669788,1759313439595,-537.46958402,0.00019178,2]
[388669789,1759313439605,-500.0,0.00019178,2]
[388669790,1759313439614,-500.0,0.00019178,2]
[388669791,1759313439624,-481.57325387,0.00019178,2]
[388669792,1759313439633,-500.0,0.00019178,2]
[388669793,1759313439643,-500.0,0.00019178,2]
[388669794,1759313439652,-484.04416984,0.00019178,2]
[388669795,1759313439662,-500.0,0.00019178,2]
[388669796,1759313439671,-481.65463056,0.00019178,2]
[388669797,1759313439680,-500.0,0.00019178,2]
[388669798,1759313439689,-500.0,0.00019178,2]
[388669799,1759313439699,-484.16129657,0.00019178,2]
[388669800,1759313439708,-500.0,0.00019178,2]
[388669801,1759313439717,-500.0,0.00019178,2]
[388669802,1759313439726,-500.0,0.00019178,2]
[388669803,1759313439736,-484.1159967,0.00019178,2]
[388669804,1759313439745,-1014.38,0.00019178,2]
[388669805,1759313439754,-500.0,0.00019178,2]
[388669806,1759313439764,-482.4559287,0.00019178,2]
[388669807,1759313439773,-316.23958041,0.00019178,2]
[388669808,1759313439782,-500.0,0.00019178,2]
[388669809,1759313439792,-480.0,0.00019178,2]
[388669810,1759313439801,-500.0,0.00019178,2]
[388669811,1759313439811,-571.58,0.00019178,2]
[388669812,1759313439821,-500.0,0.00019178,2]
[388669813,1759313439830,-530.13807382,0.00019178,2]
[388669814,1759313439839,-485.63773882,0.00019178,2]
[388669815,1759313439848,-500.0,0.00019178,2]
[388669816,1759313439858,-483.43386432,0.00019178,2]
[388669817,1759313439867,-427.14340495,0.00019178,2]
[388669818,1759313439878,-1000.0,0.00019178,2]
[388669819,1759313439887,-512.98635521,0.00019178,2]
[388669820,1759313439897,-482.92134149,0.00019178,2]
[388669821,1759313439906,-500.0,0.00019178,2]
[388669822,1759313439915,-500.0,0.00019178,2]
[388669823,1759313439925,-500.0,0.00019178,2]
[388669824,1759313439935,-500.0,0.00019178,2]
[388669825,1759313439944,-500.0,0.00019178,2]
[388669826,1759313439954,-841.29,0.00019178,2]
[388669827,1759313439965,-500.0,0.00019178,2]
[388669828,1759313439975,-500.0,0.00019178,2]
[388669829,1759313439985,-480.0,0.00019178,2]
[388669830,1759313439995,-500.0,0.00019178,2]
[388669831,1759313440004,-500.0,0.00019178,2]
[388669832,1759313440014,-500.0,0.00019178,2]
[388669833,1759313440023,-482.59714819,0.00019178,2]
[388669834,1759313440033,-481.86231403,0.00019178,2]
[388669835,1759313440043,-483.1438921,0.00019178,2]
[388669836,1759313440052,-482.33235265,0.00019178,2]
[388669837,1759313440062,-500.0,0.00019178,2]
[388669838,1759313440071,-500.0,0.00019178,2]
[388669839,1759313440082,-395.39501317,0.00019178,2]
[388669840,1759313440091,-500.0,0.00019178,2]
[388669841,1759313440100,-500.0,0.00019178,2]
[388669842,1759313440109,-480.0,0.00019178,2]
[388669843,1759313440119,-500.0,0.00019178,2]
[388669844,1759313440128,-500.0,0.00019178,2]
[388669845,1759313440137,-749.55,0.00019178,2]
[388669846,1759313440147,-1052.97,0.00019178,2]
[388669847,1759313440156,-500.0,0.00019178,2]
[388669848,1759313440165,-199.56748331,0.00019178,2]
[388669849,1759313440175,-976.03,0.00019178,2]
[388669850,1759313440184,-500.0,0.00019178,2]
[388669851,1759313440194,-500.0,0.00019178,2]
[388669852,1759313440204,-561.75,0.00019178,2]
[388669853,1759313440214,-500.0,0.00019178,2]
[388669854,1759313440225,-1101.84,0.00019178,2]
[388669856,1759313440235,-482.91222151,0.00019178,2]
[388669857,1759313440245,-500.0,0.00019178,2]
[388669858,1759313440255,-451.2406212,0.00019178,2]
[388669859,1759313440265,-500.0,0.00019178,2]
[388669860,1759313440275,-481.62358832,0.00019178,2]
[388669861,1759313440284,-500.0,0.00019178,2]
[388669862,1759313440294,-484.12149758,0.00019178,2]
[388669863,1759313440304,-480.0,0.00019178,2]
[388669864,1759313440317,-1020.46,0.00019178,2]
[388669865,1759313440327,-500.0,0.00019178,2]
[388669866,1759313440337,-480.0,0.00019178,2]
[388669867,1759313440347,-500.0,0.00019178,2]
[388669868,1759313440357,-500.0,0.00019178,2]
[388669869,1759313440366,-694.4,0.00019178,2]
[388669870,1759313440376,-215.35360522,0.00019178,2]
[388669871,1759313440387,-745.06,0.00019178,2]
[388669873,1759313440396,-400.0,0.00019178,2]
[388669874,1759313440405,-613.57088258,0.00019178,2]
[388669875,1759313440414,-500.0,0.00019178,2]
[388669876,1759313440424,-500.0,0.00019178,2]
[388669877,1759313440435,-500.0,0.00019178,2]
[388669878,1759313440445,-658.19,0.00019178,2]
[388669879,1759313440454,-500.0,0.00019178,2]
[388669880,1759313440465,-500.0,0.00019178,2]
[388669881,1759313440475,-500.0,0.00019178,2]
[388669882,1759313440485,-500.0,0.00019178,2]
[388669884,1759313440494,-500.0,0.00019178,2]
[388669885,1759313440503,-500.0,0.00019178,2]
[388669887,1759313440512,-500.0,0.00019178,2]
[388669889,1759313440522,-500.0,0.00019178,2]
[388669890,1759313440531,-483.12352438,0.00019178,2]